bitfinex/quotes_ETHUSD_20250216
["timestamp","ask_amount","ask_price","bid_price","bid_amount"]
[1739685319241,9.44945266,2712.0,2711.9,1.73e-06]
[1739685320375,9.81815266,2712.0,2711.9,1.73e-06]
[1739685320869,11.23229532,2712.0,2711.9,1.73e-06]
[1739685321667,11.16426392,2712.0,2711.9,1.73e-06]
[1739685322957,3.68772,2711.7,2711.6,3.51e-06]
[1739685323271,10.81367392,2711.7,2711.6,3.51e-06]
[1739685323473,4.50383,2711.4,2711.3,5.91e-06]
[1739685323679,11.08708392,2711.4,2711.3,5.91e-06]
[1739685325077,4.50423,2711.1,2711.0,8.92e-06]
[1739685325269,7.50423,2711.1,2711.0,8.92e-06]
[1739685325591,3.8157,2711.0,2710.8,7.82e-06]
[1739685325801,3.68881,2710.9,2710.8,7.82e-06]
[1739685327372,6.68881,2710.9,2710.8,7.82e-06]
[1739685327572,7.50451,2710.9,2710.8,7.82e-06]
[1739685328677,8.52462169,2710.9,2710.8,7.82e-06]
[1739685336601,7.43492169,2710.9,2710.8,7.82e-06]
[1739685336825,3.68881,2710.9,2710.8,7.82e-06]
[1739685337150,6.68881,2710.9,2710.8,7.82e-06]
[1739685337752,3.0,2710.9,2710.8,0.05583888]
[1739685337932,3.96248,2711.2,2710.8,7.82e-06]
[1739685338127,3.68854,2711.1,2710.8,0.05583888]
[1739685338332,3.0,2711.0,2710.8,7.82e-06]
[1739685338549,3.0,2711.0,2710.9,0.05562573]
[1739685342536,3.0,2711.0,2710.8,7.82e-06]
[1739685342857,3.0,2711.0,2710.9,0.05562573]
[1739685343663,3.0,2711.0,2710.8,7.82e-06]
[1739685343834,3.0,2711.0,2710.9,0.05562573]
[1739685346291,6.68867,2711.0,2710.9,0.05562573]
[1739685348096,3.96254,2711.1,2710.9,0.05562573]
[1739685348097,0.274,2711.1,2710.9,0.05562573]
[1739685348593,3.0,2711.0,2710.9,0.05562573]
[1739685349702,3.68867,2711.0,2710.9,0.05562573]
[1739685349922,6.96255,2711.1,2710.9,0.05562573]
[1739685350368,3.274,2711.1,2710.9,0.05562573]
[1739685350569,6.96262,2711.1,2710.9,0.05562573]
[1739685351501,6.96262,2711.1,2710.8,7.82e-06]
[1739685351892,6.96262,2711.1,2710.9,0.05536669]
[1739685352304,3.68867,2711.0,2710.9,0.05536669]
[1739685352804,6.68867,2711.0,2710.8,7.82e-06]
[1739685353173,6.68867,2711.0,2710.9,0.05537023]
[1739685353473,6.68867,2711.0,2710.8,7.82e-06]
[1739685353703,3.68881,2710.9,2710.8,7.82e-06]
[1739685356816,7.15881097,2710.9,2710.8,7.82e-06]
[1739685357108,7.93601097,2710.9,2710.8,7.82e-06]
[1739685361356,8.66276706,2710.9,2710.8,7.82e-06]
[1739685361808,6.96181,2710.9,2710.8,7.82e-06]
[1739685364026,7.73901,2710.9,2710.8,7.82e-06]
[1739685373146,7.58941,2710.9,2710.8,7.82e-06]
[1739685380242,7.58941,2710.9,2710.7,0.00553362]
[1739685380243,6.68894,2710.8,2710.7,1.44e-06]
[1739685380446,8.10505509,2710.8,2710.7,1.44e-06]
[1739685381381,8.65505509,2710.8,2710.7,1.44e-06]
[1739685381547,9.43835509,2710.8,2710.7,1.44e-06]
[1739685383482,6.68935,2710.5,2710.4,5.67e-06]
[1739685383670,7.47265,2710.5,2710.4,5.67e-06]
[1739685388985,8.21581092,2710.5,2710.4,5.67e-06]
[1739685389186,7.43251092,2710.5,2710.4,5.67e-06]
[1739685389400,7.70551092,2710.5,2710.4,5.67e-06]
[1739685389940,7.88622491,2710.5,2710.4,5.67e-06]
[1739685390628,7.70551092,2710.5,2710.4,5.67e-06]
[1739685390832,4.43251092,2710.5,2710.4,5.67e-06]
[1739685391044,3.96235,2710.5,2710.4,5.67e-06]
[1739685391450,6.96235,2710.5,2710.4,0.05623241]
[1739685391602,6.96235,2710.5,2710.4,5.67e-06]
[1739685391946,6.68935,2710.5,2710.4,5.67e-06]
[1739685392243,6.96235,2710.5,2710.4,5.67e-06]
[1739685392896,6.96235,2710.5,2710.4,0.05623241]
[1739685394125,3.273,2710.5,2710.4,0.05623241]
[1739685394447,3.96235,2710.5,2710.4,0.05623241]
[1739685398837,0.273,2710.5,2710.4,0.05623241]
[1739685399012,3.96235,2710.5,2710.4,0.05623241]
[1739685407155,0.273,2710.5,2710.4,0.05623241]
[1739685408947,3.96235,2710.5,2710.4,0.05623241]
[1739685411763,0.273,2710.5,2710.4,0.05623241]
[1739685412078,3.96235,2710.5,2710.4,0.05623241]
[1739685413163,0.273,2710.5,2710.4,0.05623241]
[1739685413668,3.96235,2710.5,2710.4,0.05623241]
[1739685416972,3.96235,2710.5,2710.4,5.67e-06]
[1739685417157,3.96235,2710.5,2710.4,0.05665278]
[1739685418672,3.96235,2710.5,2710.4,5.67e-06]
[1739685419078,3.96235,2710.5,2710.4,0.05665278]
[1739685419230,3.96235,2710.5,2710.4,5.67e-06]
[1739685419430,3.96235,2710.5,2710.4,0.05665278]
[1739685419662,3.96235,2710.5,2710.4,5.67e-06]
[1739685419922,3.96235,2710.5,2710.4,0.05665278]
[1739685420040,3.96235,2710.5,2710.4,5.67e-06]
[1739685420554,3.96235,2710.5,2710.4,0.05665278]
[1739685422926,3.96235,2710.5,2710.4,5.67e-06]
[1739685423130,3.96235,2710.5,2710.4,0.05665278]
[1739685423472,3.96235,2710.5,2710.4,5.67e-06]
[1739685423839,3.96235,2710.5,2710.4,0.05665278]
[1739685424046,3.96235,2710.5,2710.4,5.67e-06]
[1739685424245,3.96235,2710.5,2710.4,0.056667]
[1739685424447,0.273,2710.5,2710.4,5.67e-06]
[1739685424653,3.96235,2710.5,2710.4,0.056667]
[1739685427347,3.96235,2710.5,2710.4,5.67e-06]
[1739685427966,3.96235,2710.5,2710.4,0.056667]
[1739685428349,3.96235,2710.5,2710.4,5.67e-06]
[1739685428853,3.96235,2710.5,2710.4,0.056667]
[1739685429059,3.96235,2710.5,2710.4,5.67e-06]
[1739685437684,3.68935,2710.5,2710.4,5.67e-06]
[1739685437879,3.96235,2710.5,2710.4,5.67e-06]
[1739685438696,4.807067,2710.5,2710.4,5.67e-06]
[1739685444264,3.96235,2710.5,2710.4,5.67e-06]
[1739685454720,9.1541361,2710.5,2710.4,5.67e-06]
[1739685456684,6.68935,2710.5,2710.4,5.67e-06]
[1739685456906,6.96235,2710.5,2710.4,5.67e-06]
[1739685494200,3.273,2710.5,2710.4,5.67e-06]
[1739685494502,6.96235,2710.5,2710.4,5.67e-06]
[1739685502414,6.96235,2710.5,2710.4,0.05471178]
[1739685502611,6.96235,2710.5,2710.4,5.67e-06]
[1739685502811,6.96235,2710.5,2710.4,0.05471178]
[1739685503118,6.96235,2710.5,2710.4,5.67e-06]
[1739685503407,6.96235,2710.5,2710.4,0.05471178]
[1739685503614,6.96235,2710.5,2710.4,5.67e-06]
[1739685503816,6.96235,2710.5,2710.4,0.05471178]
[1739685504108,6.96235,2710.5,2710.4,5.67e-06]
[1739685504311,6.96235,2710.5,2710.4,0.05471178]
[1739685504519,6.96235,2710.5,2710.4,5.67e-06]
[1739685505015,6.96235,2710.5,2710.4,0.05471178]
[1739685505216,6.96235,2710.5,2710.4,5.67e-06]
[1739685505515,6.96235,2710.5,2710.4,0.05471178]
[1739685505714,6.96235,2710.5,2710.4,5.67e-06]
[1739685505913,6.96235,2710.5,2710.4,0.05471178]
[1739685506118,6.96235,2710.5,2710.4,5.67e-06]
[1739685506631,6.96235,2710.5,2710.4,0.05471178]
[1739685506913,6.96235,2710.5,2710.4,5.67e-06]
[1739685507122,6.96235,2710.5,2710.4,0.05471178]
[1739685507292,6.96235,2710.5,2710.4,5.67e-06]
[1739685508809,6.96235,2710.5,2710.4,0.05471178]
[1739685509009,6.96235,2710.5,2710.4,5.67e-06]
[1739685509210,6.96235,2710.5,2710.4,0.05468339]
[1739685509390,6.96235,2710.5,2710.4,5.67e-06]
[1739685509592,6.96235,2710.5,2710.4,0.05468339]
[1739685509787,6.96235,2710.5,2710.4,5.67e-06]
[1739685509987,6.96235,2710.5,2710.4,0.05468339]
[1739685510214,6.96235,2710.5,2710.4,5.67e-06]
[1739685511246,6.96235,2710.5,2710.4,0.05468339]
[1739685511414,6.96235,2710.5,2710.4,5.67e-06]
[1739685511620,6.96235,2710.5,2710.4,0.05468339]
[1739685512972,6.96235,2710.5,2710.4,5.67e-06]
[1739685516753,6.96235,2710.5,2710.4,0.05468339]
[1739685517640,6.96235,2710.5,2710.4,5.67e-06]
[1739685536587,6.96235,2710.5,2710.4,0.05363535]
[1739685536790,6.96235,2710.5,2710.4,5.67e-06]
[1739685536954,6.96235,2710.5,2710.4,0.05363535]
[1739685544305,3.68922,2710.6,2710.4,0.05363535]
[1739685544488,0.8234,2711.4,2710.7,3.68896]
[1739685544798,0.273,2711.3,2710.8,0.368896]
[1739685545093,3.68842,2711.2,2710.8,4.11079685]
[1739685545293,3.96129,2711.3,2710.8,0.42198685]
[1739685545524,3.6884,2711.2,2710.8,0.42198685]
[1739685545820,3.6884,2711.2,2710.9,0.55269629]
[1739685545968,3.96129,2711.3,2710.9,0.55269629]
[1739685545969,3.68855,2711.1,2710.9,1.96868239]
[1739685546168,3.68855,2711.1,2710.9,1.4159861]
[1739685546386,3.68855,2711.1,2711.0,0.05313065]
[1739685546589,3.68855,2711.1,2710.8,0.368896]
[1739685546799,3.68853,2711.2,2710.9,0.05322596]
[1739685547006,3.96129,2711.3,2710.9,0.05322596]
[1739685547182,3.68857,2711.1,2710.9,0.05322596]
[1739685548203,7.37721,2711.1,2710.9,0.05322596]
[1739685548371,3.68857,2711.1,2710.9,0.05322596]
[1739685548702,3.68867,2711.0,2710.9,0.05322596]
[1739685550006,3.68867,2711.0,2710.5,1.4159861]
[1739685550172,3.68886,2710.9,2710.6,0.51053918]
[1739685551721,3.68867,2711.0,2710.6,0.51053918]
[1739685552007,3.68883,2710.9,2710.6,0.51053918]
[1739685552717,3.68908,2710.7,2710.6,0.51053918]
[1739685552920,3.68925,2710.6,2710.4,5.67e-06]
[1739685553493,3.7863,2711.1,2710.4,5.67e-06]
[1739685553816,3.68898,2710.8,2710.4,5.67e-06]
[1739685554124,0.7863,2711.4,2710.5,1.4159861]
[1739685554313,3.68874,2711.0,2710.5,5.1052961]
[1739685554617,3.68874,2711.0,2710.6,0.92971294]
[1739685555083,7.37749,2711.0,2710.6,0.92971294]
[1739685555285,3.68874,2711.0,2710.6,0.92971294]
[1739685555883,3.68881,2710.9,2710.6,0.92971294]
[1739685556088,3.68901,2710.8,2710.6,0.92971294]
[1739685556295,3.68901,2710.8,2710.6,0.05024576]
[1739685556503,3.68901,2710.8,2710.4,5.67e-06]
[1739685556704,3.68901,2710.8,2710.7,0.05015044]
[1739685556903,3.68901,2710.8,2710.4,5.67e-06]
[1739685557104,3.68901,2710.8,2710.7,0.05015044]
[1739685557420,3.68901,2710.8,2710.4,5.67e-06]
[1739685557621,3.68901,2710.8,2710.7,0.05015044]
[1739685557806,3.68901,2710.8,2710.5,0.51056118]
[1739685558193,3.68901,2710.8,2710.6,0.05024576]
[1739685558394,3.68902,2710.8,2710.6,0.05024576]
[1739685559021,3.68916,2710.7,2710.4,5.67e-06]
[1739685560334,3.68928,2710.6,2710.4,0.51056985]
[1739685560510,3.68935,2710.5,2710.4,5.67e-06]
[1739685565395,3.68916,2710.7,2710.4,5.67e-06]
[1739685566035,3.68869,2711.0,2710.4,5.67e-06]
[1739685566224,3.68935,2710.5,2710.4,5.67e-06]
[1739685568038,3.68928,2710.6,2710.4,5.67e-06]
[1739685568335,3.68915,2710.7,2710.4,5.67e-06]
[1739685568507,3.68935,2710.5,2710.4,5.67e-06]
[1739685569538,3.68935,2710.5,2710.4,0.05055895]
[1739685569705,3.68935,2710.5,2710.4,5.67e-06]
[1739685569901,3.68935,2710.5,2710.4,0.05053947]
[1739685570340,3.68922,2710.6,2710.4,0.05053947]
[1739685572241,3.68935,2710.5,2710.4,0.05053947]
[1739685577414,5.199707,2710.5,2710.4,0.05053947]
[1739685577836,0.24325948,2710.0,2709.8,0.00553546]
[1739685578330,0.24325948,2710.0,2709.9,0.04918369]
[1739685578538,3.93328948,2710.0,2709.9,0.04918369]
[1739685579414,0.24325948,2710.0,2709.9,0.04918369]
[1739685584451,3.93328948,2710.0,2709.9,0.04918369]
[1739685589151,0.24325948,2710.0,2709.9,0.04918369]
[1739685591953,3.93328948,2710.0,2709.9,0.04918369]
[1739685599826,4.77285943,2710.0,2709.9,0.04918369]
[1739685600133,3.69017,2709.9,2709.8,0.00553546]
[1739685601131,5.1061561,2709.9,2709.8,0.00553546]
[1739685601458,8.9259561,2709.9,2709.8,0.00553546]
[1739685605434,8.9259561,2709.9,2709.5,0.00553607]
[1739685605435,3.69099,2709.3,2708.9,1.38897628]
[1739685605646,3.69099,2709.3,2708.9,2.43402891]
[1739685605846,3.69099,2709.3,2708.9,1.38897628]
[1739685606164,3.69113,2709.2,2708.9,1.38897628]
[1739685606335,3.69129,2709.1,2708.7,1.4159861]
[1739685606533,3.6914,2709.0,2708.7,1.4159861]
[1739685608766,3.6914,2709.0,2708.6,0.00553791]
[1739685608935,3.69161,2708.9,2708.6,0.00553791]
[1739685609664,3.6914,2709.0,2708.6,0.00553791]
[1739685609874,7.38291,2709.0,2708.6,0.00553791]
[1739685610036,3.69155,2708.9,2708.6,0.00553791]
[1739685610361,0.8083,2709.1,2708.6,0.00553791]
[1739685610564,0.8083,2709.1,2708.6,3.69738791]
[1739685610763,0.8083,2709.1,2708.7,3.69169]
[1739685611063,4.49957,2709.1,2708.7,3.69169]
[1739685611362,4.49957,2709.1,2708.6,0.00553791]
[1739685611363,3.69147,2709.0,2708.6,0.00553791]
[1739685611751,7.38295,2709.0,2708.6,0.00553791]
[1739685612134,3.69147,2709.0,2708.6,0.00553791]
[1739685612332,7.38294,2709.0,2708.6,0.00553791]
[1739685612765,3.69157,2708.9,2708.6,0.00553791]
[1739685613152,3.69161,2708.9,2708.6,0.00553791]
[1739685613505,3.69168,2708.8,2708.6,0.00553791]
[1739685613780,3.6918,2708.7,2708.6,0.00553791]
[1739685614272,5.238448,2708.7,2708.6,0.00553791]
[1739685614475,6.6544341,2708.7,2708.6,0.00553791]
[1739685615647,11.00476761,2708.7,2708.6,0.00553791]
[1739685616381,7.50051,2708.4,2708.3,0.00553852]
[1739685617055,10.26682961,2708.4,2708.3,0.00553852]
[1739685617255,10.80054562,2708.4,2708.3,0.00553852]
[1739685618382,11.52608042,2708.4,2708.3,0.00553852]
[1739685618773,3.272,2708.4,2708.3,0.00553852]
[1739685619101,3.69221,2708.4,2708.3,0.05609526]
[1739685619302,3.69221,2708.4,2708.3,0.00553852]
[1739685619473,3.272,2708.5,2708.3,0.00553852]
[1739685619670,5.26037644,2708.7,2708.3,3.69775852]
[1739685619918,5.26037644,2708.7,2708.5,3.69207]
[1739685620122,0.272,2708.9,2708.6,3.74221032]
[1739685620401,1.0301,2709.1,2708.6,3.74220032]
[1739685620903,4.72138,2709.1,2708.6,0.05027032]
[1739685621081,3.69163,2708.9,2708.3,0.00553852]
[1739685621285,3.69163,2708.9,2708.4,0.05046126]
[1739685621604,1.0301,2709.1,2708.4,0.05046126]
[1739685621776,3.69155,2708.9,2708.4,0.05046126]
[1739685622200,4.72148,2709.1,2708.5,3.69204]
[1739685622575,1.0301,2709.1,2708.5,3.69204]
[1739685622863,1.0301,2709.1,2708.6,0.04824164]
[1739685622974,4.72142,2709.1,2708.6,0.04824164]
[1739685623669,1.0301,2709.1,2708.6,0.04824164]
[1739685623873,1.0301,2709.1,2708.7,3.69171]
[1739685624107,1.0301,2709.1,2708.8,0.04803655]
[1739685624281,1.0301,2709.1,2708.7,3.69173]
[1739685624489,1.0301,2709.1,2708.8,0.04803655]
[1739685624696,1.0301,2709.1,2708.7,3.69173]
[1739685625010,0.7581,2709.1,2708.8,0.04784552]
[1739685625414,0.7581,2709.1,2708.7,3.69173]
[1739685625614,6.69078,2709.5,2708.9,0.04775007]
[1739685625615,4.44904,2709.4,2708.9,0.04775007]
[1739685625781,4.44904,2709.4,2708.7,4.430106]
[1739685625782,3.0,2709.2,2708.8,0.04784552]
[1739685625987,3.0,2709.2,2709.0,0.04765463]
[1739685626319,3.0,2709.2,2708.7,3.69173]
[1739685626521,3.0,2709.2,2708.8,0.04784552]
[1739685626698,3.0,2709.2,2708.7,3.69171]
[1739685626902,3.0,2709.2,2708.8,0.04784552]
[1739685627101,0.272,2709.3,2708.8,3.69159]
[1739685627415,0.272,2709.3,2708.9,0.04775007]
[1739685628322,0.3692,2709.2,2708.9,0.04775007]
[1739685628621,0.272,2709.3,2708.9,0.04775007]
[1739685629121,3.0,2709.2,2708.9,0.04775007]
[1739685629794,6.69113,2709.2,2708.6,3.69187]
[1739685629993,6.69113,2709.2,2709.0,0.04765463]
[1739685630193,3.0,2709.2,2708.7,3.69173]
[1739685630437,3.0,2709.2,2709.1,0.0475592]
[1739685630640,6.69112,2709.2,2708.7,3.69173]
[1739685630837,6.69112,2709.2,2709.1,0.0475592]
[1739685631046,3.69127,2709.1,2708.5,3.69198]
[1739685631251,3.69146,2709.0,2708.5,3.69198]
[1739685631452,0.396327,2709.1,2708.3,0.00553852]
[1739685631638,3.272,2709.3,2708.3,0.00553852]
[1739685631948,0.272,2709.3,2708.9,3.69146]
[1739685632150,0.272,2709.3,2709.0,3.69132]
[1739685632327,0.272,2709.3,2709.1,3.69119]
[1739685632534,0.272,2709.3,2709.0,3.69139]
[1739685632728,0.272,2709.4,2708.9,3.69144]
[1739685633052,3.0,2709.5,2709.0,3.69132]
[1739685633053,3.272,2709.5,2709.0,3.69132]
[1739685634353,6.96274,2709.5,2709.0,3.69132]
[1739685634665,3.0,2709.5,2709.1,3.69118]
[1739685634832,0.7581,2709.6,2709.4,3.69082]
[1739685635236,0.7581,2709.6,2709.5,0.04646837]
[1739685635420,0.22598948,2710.0,2709.5,0.04646837]
[1739685635421,0.49798948,2710.0,2709.5,0.04646837]
[1739685635753,0.49798948,2710.0,2709.6,3.73688297]
[1739685636723,0.49798948,2710.0,2709.6,0.04637297]
[1739685637323,0.49798948,2710.0,2709.6,3.69053]
[1739685637524,0.49798948,2710.0,2709.7,0.04618912]
[1739685637755,1.29307843,2710.0,2709.7,0.04618912]
[1739685639046,0.49798948,2710.0,2709.8,3.69028]
[1739685639277,0.49798948,2710.0,2709.6,3.69048]
[1739685639278,0.22598948,2710.0,2709.6,3.69048]
[1739685639670,0.22598948,2710.0,2709.7,0.04611484]
[1739685639671,3.91607948,2710.0,2709.7,0.04611484]
[1739685639868,3.91607948,2710.0,2709.5,3.69069]
[1739685640067,0.22598948,2710.0,2709.6,0.04619963]
[1739685640443,4.45325,2709.9,2709.7,0.04445424]
[1739685640650,4.45325,2709.9,2709.4,3.69078]
[1739685640882,4.45325,2709.9,2709.5,0.04464504]
[1739685641284,3.69051,2709.7,2709.5,0.04464504]
[1739685641577,3.69058,2709.6,2709.1,3.692]
[1739685641779,7.38124,2709.6,2709.1,3.692]
[1739685642094,3.6904,2709.8,2709.2,3.69112]
[1739685642302,3.69052,2709.7,2709.2,3.69112]
[1739685642454,3.6904,2709.8,2709.2,3.69112]
[1739685642797,7.21955961,2709.9,2709.3,3.69091]
[1739685643002,4.27387452,2709.9,2709.3,3.69091]
[1739685643161,7.38071,2709.8,2709.3,3.69091]
[1739685643358,7.38071,2709.8,2709.1,0.0008]
[1739685643603,3.69062,2709.6,2709.1,3.69196]
[1739685643795,3.69054,2709.7,2709.1,3.69196]
[1739685644004,3.69053,2709.7,2709.1,3.69196]
[1739685644283,3.69053,2709.7,2709.1,4.430285]
[1739685644451,3.69053,2709.7,2709.1,0.739125]
[1739685644655,3.69053,2709.7,2709.2,3.69109]
[1739685645282,7.38108,2709.7,2709.2,3.69109]
[1739685645471,3.69058,2709.6,2709.1,0.0008]
[1739685645982,3.69071,2709.5,2709.1,0.0008]
[1739685646177,4.45371,2709.5,2709.1,0.0008]
[1739685648103,3.69086,2709.4,2709.2,0.04493484]
[1739685648413,3.69099,2709.3,2709.2,0.04493484]
[1739685650010,4.2184991,2709.3,2709.2,0.04493484]
[1739685650377,3.69112,2709.2,2709.1,0.0008]
[1739685650563,4.48102,2709.2,2709.1,0.0008]
[1739685650765,4.48102,2709.2,2709.1,0.04591873]
[1739685652164,7.48102,2709.2,2709.1,0.04591873]
[1739685652359,8.22557491,2709.2,2709.1,0.0008]
[1739685655995,8.77557491,2709.2,2709.1,0.0008]
[1739685657487,8.77557491,2709.2,2708.3,0.00553852]
[1739685657488,4.48211,2708.4,2708.3,0.00553852]
[1739685657663,4.75411,2708.4,2708.3,0.00553852]
[1739685659899,3.0,2708.6,2708.3,0.00553852]
[1739685660399,3.0,2708.6,2708.4,0.04655499]
[1739685661219,3.5275091,2708.6,2708.3,0.00209351]
[1739685661402,6.69194,2708.6,2708.5,0.04476497]
[1739685661609,3.0,2708.6,2708.4,0.04486045]
[1739685661838,6.69195,2708.6,2708.5,0.04476497]
[1739685662209,6.69195,2708.6,2708.3,0.00209351]
[1739685663131,6.69195,2708.6,2708.4,0.04486045]
[1739685663427,3.69208,2708.5,2708.4,0.04486045]
[1739685663935,3.0,2708.6,2708.4,0.04486045]
[1739685664316,3.0,2708.6,2708.5,0.04316281]
[1739685664647,3.0,2708.6,2708.1,3.83731286]
[1739685664805,3.0,2708.6,2708.5,0.04316281]
[1739685665001,3.0,2708.6,2708.2,3.69246]
[1739685665259,6.69195,2708.6,2708.5,0.04316281]
[1739685665546,3.0,2708.6,2708.5,0.04316281]
[1739685665754,3.0,2708.6,2708.2,3.69248]
[1739685665954,3.0,2708.6,2708.3,0.04335378]
[1739685666238,3.0,2708.6,2708.2,3.69248]
[1739685666406,6.69195,2708.6,2708.4,0.04325829]
[1739685666609,6.69195,2708.6,2708.3,0.04335378]
[1739685666804,3.0,2708.6,2708.5,0.04316281]
[1739685666999,3.0,2708.6,2708.4,0.04325829]
[1739685667198,3.0,2708.6,2708.5,0.04316281]
[1739685667437,3.69194,2708.6,2708.5,0.04316281]
[1739685667635,3.69194,2708.6,2708.1,3.83742286]
[1739685667840,6.69194,2708.6,2708.5,0.04316281]
[1739685668046,3.6921,2708.5,2708.1,0.14481286]
[1739685668724,3.6921,2708.5,2708.2,0.04344927]
[1739685670149,6.69201,2708.6,2708.2,0.04344927]
[1739685670518,0.272,2708.7,2708.2,0.04344927]
[1739685670719,0.272,2708.8,2708.5,3.69195]
[1739685670953,3.272,2708.8,2708.6,0.04306734]
[1739685671653,6.96367,2708.8,2708.6,0.04306734]
[1739685671819,6.96367,2708.8,2708.4,3.6922]
[1739685672152,3.0,2708.8,2708.4,3.6922]
[1739685672315,3.0,2708.8,2708.5,0.04309906]
[1739685672657,3.69187,2708.7,2708.5,0.04309906]
[1739685672951,3.69187,2708.7,2708.2,3.69238]
[1739685673255,3.69187,2708.7,2708.3,0.04329003]
[1739685673553,7.38379,2708.7,2708.2,3.69238]
[1739685673753,3.69187,2708.7,2708.3,0.04329003]
[1739685673933,7.38379,2708.7,2708.2,3.69238]
[1739685674125,7.38379,2708.7,2708.3,0.04329003]
[1739685674324,7.38379,2708.7,2708.2,3.69238]
[1739685674520,7.38379,2708.7,2708.3,0.04329003]
[1739685674758,7.38379,2708.7,2708.2,3.69238]
[1739685674957,3.69187,2708.7,2708.3,0.0423475]
[1739685675159,3.69187,2708.7,2708.2,3.69238]
[1739685675347,3.69187,2708.7,2708.3,0.0423475]
[1739685675564,3.69187,2708.7,2708.2,4.4459192]
[1739685675771,3.69187,2708.7,2708.3,0.0423475]
[1739685675967,3.692,2708.6,2708.3,0.0423475]
[1739685676178,3.692,2708.6,2708.2,3.69248]
[1739685676471,3.692,2708.6,2708.3,0.0423475]
[1739685676669,3.69189,2708.7,2708.3,0.0423475]
[1739685676868,3.692,2708.6,2708.1,3.83733286]
[1739685677057,1.0619,2708.9,2708.4,0.04225201]
[1739685677256,3.69174,2708.8,2708.3,3.69234]
[1739685677471,3.69174,2708.8,2708.4,3.69215]
[1739685677661,3.69174,2708.8,2708.4,3.73440201]
[1739685678479,4.0619,2708.9,2708.4,3.73440201]
[1739685678651,7.75344,2708.9,2708.4,3.73440201]
[1739685679087,0.8046,2709.3,2708.9,3.69143]
[1739685679385,3.69085,2709.4,2709.0,0.04165094]
[1739685679598,1.08,2709.5,2709.0,0.04165094]
[1739685679745,3.69121,2709.2,2709.0,0.04165094]
[1739685679950,4.49926,2709.1,2708.6,3.69193]
[1739685680161,4.49926,2709.1,2708.7,0.04165281]
[1739685681584,3.6914,2709.0,2708.7,0.04165281]
[1739685681886,3.6914,2709.0,2708.6,3.69193]
[1739685682063,0.808,2709.1,2708.6,3.69193]
[1739685682451,0.808,2709.1,2708.7,0.04193729]
[1739685682651,0.808,2709.1,2708.6,3.69193]
[1739685682956,3.69156,2708.9,2708.4,3.69217]
[1739685683157,3.69156,2708.9,2708.5,0.04212824]
[1739685683963,4.976454,2709.1,2708.5,0.04212824]
[1739685684165,4.49934,2709.1,2708.6,3.69186]
[1739685684362,4.49934,2709.1,2708.7,0.04193729]
[1739685685156,4.49934,2709.1,2708.7,3.73372729]
[1739685685380,0.808,2709.1,2708.7,3.73372729]
[1739685685580,0.808,2709.1,2708.7,0.04193729]
[1739685685785,4.49929,2709.1,2708.7,0.04193729]
[1739685687169,3.69129,2709.1,2708.7,3.73371729]
[1739685688473,3.96319,2709.2,2708.7,3.73371729]
[1739685688675,0.272,2709.2,2708.8,3.69165]
[1739685689078,0.272,2709.2,2708.9,0.04174638]
[1739685689281,7.49908,2709.3,2708.9,0.04174638]
[1739685689593,7.77108,2709.3,2708.9,0.04174638]
[1739685689952,6.69089,2709.4,2708.9,3.73326638]
[1739685690615,3.69102,2709.3,2708.9,3.73326638]
[1739685690772,3.69115,2709.2,2708.9,0.04174638]
[1739685690970,3.69126,2709.1,2708.6,3.69192]
[1739685691196,3.69126,2709.1,2708.7,0.0418029]
[1739685691908,3.69126,2709.1,2708.7,3.7335629]
[1739685692097,3.69108,2709.3,2708.7,3.7335629]
[1739685692270,3.69113,2709.2,2708.7,3.7335629]
[1739685694709,3.69133,2709.1,2708.7,0.0418029]
[1739685695077,3.69133,2709.1,2708.6,7.38371]
[1739685695277,3.69133,2709.1,2708.8,0.04170744]
[1739685695480,3.69133,2709.1,2708.7,3.7335929]
[1739685695678,3.69133,2709.1,2708.9,0.04161199]
[1739685695877,3.69133,2709.1,2708.8,0.04170744]
[1739685696096,3.69133,2709.1,2709.0,0.04151654]
[1739685696607,3.69133,2709.1,2708.7,3.69179]
[1739685696807,3.69133,2709.1,2709.0,0.04151654]
[1739685696970,3.69133,2709.1,2708.7,3.69179]
[1739685697308,3.69133,2709.1,2708.8,0.04170744]
[1739685697617,3.69133,2709.1,2708.7,3.69179]
[1739685697801,3.69133,2709.1,2708.9,0.04161199]
[1739685697981,3.69133,2709.1,2708.7,3.69179]
[1739685697982,3.69119,2709.2,2708.7,3.69167]
[1739685698202,3.69119,2709.2,2708.8,0.04170744]
[1739685698401,3.69119,2709.2,2708.7,3.69167]
[1739685698620,3.69126,2709.1,2708.8,0.04170744]
[1739685698920,3.69126,2709.1,2708.5,3.69198]
[1739685699085,3.69126,2709.1,2708.6,3.73378837]
[1739685699290,3.69126,2709.1,2708.7,3.69179]
[1739685699714,3.69126,2709.1,2708.8,0.04170037]
[1739685699911,3.69126,2709.1,2708.7,3.69179]
[1739685700222,3.69126,2709.1,2708.5,4.061178]
[1739685700223,3.69126,2709.1,2708.8,0.04158721]
[1739685700524,3.69126,2709.1,2708.6,3.69193]
[1739685700826,3.69126,2709.1,2708.7,0.04168267]
[1739685701318,3.69106,2709.3,2708.7,0.04168267]
[1739685701319,3.69099,2709.3,2708.7,0.04168267]
[1739685701485,3.69121,2709.2,2708.7,3.73348267]
[1739685702842,3.69133,2709.1,2708.7,0.04168267]
[1739685703330,3.69133,2709.1,2708.7,3.73348267]
[1739685704625,3.69133,2709.1,2708.7,0.04168267]
[1739685705028,3.69133,2709.1,2708.7,3.73347267]
[1739685705404,3.69121,2709.2,2708.7,0.04168267]
[1739685705617,0.51255611,2709.2,2708.5,3.69196]
[1739685705822,0.51255611,2709.2,2708.8,0.04158721]
[1739685706143,3.6914,2709.0,2708.9,0.04149175]
[1739685706358,3.6914,2709.0,2708.6,3.69193]
[1739685706505,3.6914,2709.0,2708.7,0.04168267]
[1739685707432,4.46769,2708.9,2708.7,0.04168267]
[1739685707615,4.46769,2708.9,2708.4,3.69217]
[1739685707815,4.46769,2708.9,2708.8,0.04160842]
[1739685708019,4.46769,2708.9,2708.4,3.69217]
[1739685708237,4.46769,2708.9,2708.8,0.04160842]
[1739685708417,4.46769,2708.9,2708.4,3.69217]
[1739685708614,4.46769,2708.9,2708.8,0.04160842]